Workbook

Sheet Vracov
A1: Vracov | C1: dky - dívky | D1: Celkem | E1: Buňky s touto barvou pozadí jsou uzamčeny. Vyplňovat a měnit obsah buňky lze pouze u buněk bez pozadí! | I1: =COUNTIF(F8:F47,">0") -> 17
C2: dci - hoši
D3: =SUM(#REF!) -> 
A5: . | B5: Jméno | C5: Oddíl | D5: Kateg. | E5: Celkem | F5: Plné | G5: Dor. | H5: Chyb
D7: Kategorie | I7: Změny?
A8: =IF(OR(ISBLANK($B8),$D8<0),"",ROW(A8)-7) -> 1. | B8: Mlčoch Filip | C8: KC Zlín | D8: Dci | E8: =SUM(F8:G8) -> 569 | F8: 400 | G8: 169 | H8: 5
A9: =IF(OR(ISBLANK($B9),$D9<0),"",ROW(A9)-7) -> 2. | B9: Zaoral Marek | C9: KK Vyškov | D9: Dci | E9: =SUM(F9:G9) -> 567 | F9: 376 | G9: 191 | H9: 5
A10: =IF(OR(ISBLANK($B10),$D10<0),"",ROW(A10)-7) -> 3. | B10: Záhořák Adam | C10: KC Zlín | D10: Dci | E10: =SUM(F10:G10) -> 547 | F10: 378 | G10: 169 | H10: 9
A11: =IF(OR(ISBLANK($B11),$D11<0),"",ROW(A11)-7) -> 4. | B11: Svoboda František | C11: KC Zlín | D11: Dci | E11: =SUM(F11:G11) -> 544 | F11: 373 | G11: 171 | H11: 8
A12: =IF(OR(ISBLANK($B12),$D12<0),"",ROW(A12)-7) -> 5. | B12: Polepil Alex | C12: KC Zlín | D12: Dci | E12: =SUM(F12:G12) -> 532 | F12: 361 | G12: 171 | H12: 3
A13: =IF(OR(ISBLANK($B13),$D13<0),"",ROW(A13)-7) -> 6. | B13: Pevný Kryštof | C13: KK Vyškov | D13: Dci | E13: =SUM(F13:G13) -> 527 | F13: 362 | G13: 165 | H13: 5
A14: =IF(OR(ISBLANK($B14),$D14<0),"",ROW(A14)-7) -> 7. | B14: Harca Jaroslav | C14: SKK Dubňany | D14: Dci | E14: =SUM(F14:G14) -> 526 | F14: 358 | G14: 168 | H14: 7
A15: =IF(OR(ISBLANK($B15),$D15<0),"",ROW(A15)-7) -> 8. | B15: Loubal Radek | C15: KK Vyškov | D15: Dci | E15: =SUM(F15:G15) -> 523 | F15: 367 | G15: 156 | H15: 11
A16: =IF(OR(ISBLANK($B16),$D16<0),"",ROW(A16)-7) -> 9. | B16: Zaoral Milan | C16: KK Vyškov | D16: Dci | E16: =SUM(F16:G16) -> 521 | F16: 355 | G16: 166 | H16: 3
A17: =IF(OR(ISBLANK($B17),$D17<0),"",ROW(A17)-7) -> 10. | B17: Kotásek David | C17: SK Ban. Ratíškovice | D17: Dci | E17: =SUM(F17:G17) -> 519 | F17: 358 | G17: 161 | H17: 7
A18: =IF(OR(ISBLANK($B18),$D18<0),"",ROW(A18)-7) -> 11. | B18: Valent Dominik | C18: KK Vyškov | D18: Dci | E18: =SUM(F18:G18) -> 515 | F18: 367 | G18: 148 | H18: 13
A19: =IF(OR(ISBLANK($B19),$D19<0),"",ROW(A19)-7) -> 12. | B19: Danylciv Lukas | C19: TJ Sokol Vracov | D19: Dci | E19: =SUM(F19:G19) -> 484 | F19: 334 | G19: 150 | H19: 11
A20: =IF(OR(ISBLANK($B20),$D20<0),"",ROW(A20)-7) -> 13. | B20: Koplíková Martina | C20: SK Ban. Ratíškovice | D20: Dky | E20: =SUM(F20:G20) -> 537 | F20: 381 | G20: 156 | H20: 3
A21: =IF(OR(ISBLANK($B21),$D21<0),"",ROW(A21)-7) -> 14. | B21: Vávrová Denisa | C21: KK Sokol Litenčice | D21: Dky | E21: =SUM(F21:G21) -> 525 | F21: 367 | G21: 158 | H21: 8
A22: =IF(OR(ISBLANK($B22),$D22<0),"",ROW(A22)-7) -> 15. | B22: Poláchová Anna | C22: SK Podlužan Prušánky | D22: Dky | E22: =SUM(F22:G22) -> 523 | F22: 367 | G22: 156 | H22: 9
A23: 16. | B23: Ševelová Kristýna | C23: SK Ban. Ratíškovice | D23: Dky | E23: =SUM(F23:G23) -> 514 | F23: 367 | G23: 147 | H23: 6
A24: =IF(OR(ISBLANK($B24),$D24<0),"",ROW(A24)-7) -> 17. | B24: Příkaská Adéla | C24: SK Ban. Ratíškovice | D24: Dky | E24: =SUM(F24:G24) -> 473 | F24: 342 | G24: 131 | H24: 14
E25: =SUM(F25:G25) -> 0
E26: 0
E27: 0
E28: 0
E29: 0
E30: 0
E31: 0
E32: 0
E33: 0
A34: =IF(OR(ISBLANK($B34),$D34<0),"",ROW(A34)-7) ->  | E34: 0
A35: =IF(OR(ISBLANK($B35),$D35<0),"",ROW(A35)-7) ->  | E35: 0
A36: =IF(OR(ISBLANK($B36),$D36<0),"",ROW(A36)-7) ->  | E36: 0
A37: =IF(OR(ISBLANK($B37),$D37<0),"",ROW(A37)-7) ->  | E37: 0
A38: =IF(OR(ISBLANK($B38),$D38<0),"",ROW(A38)-7) ->  | E38: 0
A39: =IF(OR(ISBLANK($B39),$D39<0),"",ROW(A39)-7) ->  | E39: 0
A40: =IF(OR(ISBLANK($B40),$D40<0),"",ROW(A40)-7) ->  | E40: 0
A41: =IF(OR(ISBLANK($B41),$D41<0),"",ROW(A41)-7) ->  | E41: 0
A42: =IF(OR(ISBLANK($B42),$D42<0),"",ROW(A42)-7) ->  | E42: 0
A43: =IF(OR(ISBLANK($B43),$D43<0),"",ROW(A43)-7) ->  | E43: 0
A44: =IF(OR(ISBLANK($B44),$D44<0),"",ROW(A44)-7) ->  | E44: 0
A45: =IF(OR(ISBLANK($B45),$D45<0),"",ROW(A45)-7) ->  | E45: 0
A46: =IF(OR(ISBLANK($B46),$D46<0),"",ROW(A46)-7) ->  | E46: 0
A47: =IF(OR(ISBLANK($B47),$D47<0),"",ROW(A47)-7) ->  | E47: 0
A48: =IF(OR(ISBLANK($B48),$D48<0),"",ROW(A48)-7) ->  | E48: 0
A49: =IF(OR(ISBLANK($B49),$D49<0),"",ROW(A49)-7) ->  | E49: 0
A50: =IF(OR(ISBLANK($B50),$D50<0),"",ROW(A50)-7) ->  | E50: 0
A51: =IF(OR(ISBLANK($B51),$D51<0),"",ROW(A51)-7) ->  | E51: 0
A52: =IF(OR(ISBLANK($B52),$D52<0),"",ROW(A52)-7) ->  | E52: 0
A53: =IF(OR(ISBLANK($B53),$D53<0),"",ROW(A53)-7) ->  | E53: 0
A54: =IF(OR(ISBLANK($B54),$D54<0),"",ROW(A54)-7) ->  | E54: 0
A55: =IF(OR(ISBLANK($B55),$D55<0),"",ROW(A55)-7) ->  | E55: 0
A56: =IF(OR(ISBLANK($B56),$D56<0),"",ROW(A56)-7) ->  | E56: 0
A57: =IF(OR(ISBLANK($B57),$D57<0),"",ROW(A57)-7) ->  | E57: 0
A58: =IF(OR(ISBLANK($B58),$D58<0),"",ROW(A58)-7) ->  | E58: 0
A59: =IF(OR(ISBLANK($B59),$D59<0),"",ROW(A59)-7) ->  | E59: 0
A60: =IF(OR(ISBLANK($B60),$D60<0),"",ROW(A60)-7) ->  | E60: 0
A61: =IF(OR(ISBLANK($B61),$D61<0),"",ROW(A61)-7) ->  | E61: 0
A62: =IF(OR(ISBLANK($B62),$D62<0),"",ROW(A62)-7) ->  | E62: 0
A63: =IF(OR(ISBLANK($B63),$D63<0),"",ROW(A63)-7) ->  | E63: 0
A64: =IF(OR(ISBLANK($B64),$D64<0),"",ROW(A64)-7) ->  | E64: 0
A65: =IF(OR(ISBLANK($B65),$D65<0),"",ROW(A65)-7) ->  | E65: =IF(OR(ISBLANK($F65))," ",F65+G65) -> 
A66: =IF(OR(ISBLANK($B66),$D66<0),"",ROW(A66)-7) ->  | E66: =IF(OR(ISBLANK($F66))," ",F66+G66) -> 
A67: =IF(OR(ISBLANK($B67),$D67<0),"",ROW(A67)-7) ->  | E67: =IF(OR(ISBLANK($F67))," ",F67+G67) -> 
A68: =IF(OR(ISBLANK($B68),$D68<0),"",ROW(A68)-7) ->  | E68: =IF(OR(ISBLANK($F68))," ",F68+G68) -> 
A69: =IF(OR(ISBLANK($B69),$D69<0),"",ROW(A69)-7) ->  | E69: =IF(OR(ISBLANK($F69))," ",F69+G69) -> 
A70: =IF(OR(ISBLANK($B70),$D70<0),"",ROW(A70)-7) -> 
A71: =IF(OR(ISBLANK($B71),$D71<0),"",ROW(A71)-7) -> 
A72: =IF(OR(ISBLANK($B72),$D72<0),"",ROW(A72)-7) -> 
A73: =IF(OR(ISBLANK($B73),$D73<0),"",ROW(A73)-7) -> 
A74: =IF(OR(ISBLANK($B74),$D74<0),"",ROW(A74)-7) -> 
A75: =IF(OR(ISBLANK($B75),$D75<0),"",ROW(A75)-7) -> 
A76: =IF(OR(ISBLANK($B76),$D76<0),"",ROW(A76)-7) -> 
A77: =IF(OR(ISBLANK($B77),$D77<0),"",ROW(A77)-7) -> 
A78: =IF(OR(ISBLANK($B78),$D78<0),"",ROW(A78)-7) -> 
A79: =IF(OR(ISBLANK($B79),$D79<0),"",ROW(A79)-7) -> 
A80: =IF(OR(ISBLANK($B80),$D80<0),"",ROW(A80)-7) -> 
A81: =IF(OR(ISBLANK($B81),$D81<0),"",ROW(A81)-7) -> 
A82: =IF(OR(ISBLANK($B82),$D82<0),"",ROW(A82)-7) -> 

Sheet Pelhřimov
A1: Pelhřimov | C1: dky - dívky | D1: Celkem | E1: Buňky s touto barvou pozadí jsou uzamčeny. Vyplňovat a měnit obsah buňky lze pouze u buněk bez pozadí! | I1: =COUNTIF(F8:F47,">0") -> 22
C2: dci - hoši
D3: =SUM(#REF!) -> 
A5: . | B5: Jméno | C5: Oddíl | D5: Kateg. | E5: Celkem | F5: Plné | G5: Dor. | H5: Chyb
D7: Kategorie | I7: Změny?
A8: =IF(OR(ISBLANK($B8),$D8<0),"",ROW(A8)-7) -> 1. | B8: Horký David | C8: TJ N. Město na M. | D8: dci | E8: =SUM(F8:G8) -> 468 | F8: 328 | G8: 140 | H8: 18
A9: =IF(OR(ISBLANK($B9),$D9<0),"",ROW(A9)-7) -> 2. | B9: Votava Jakub | C9: TJ Třebíč | D9: Dci | E9: =SUM(F9:G9) -> 543 | F9: 337 | G9: 206 | H9: 3
A10: =IF(OR(ISBLANK($B10),$D10<0),"",ROW(A10)-7) -> 3. | B10: Morávek David | C10: TJ Sokol Písek | D10: Dci | E10: =SUM(F10:G10) -> 532 | F10: 339 | G10: 193 | H10: 7
A11: =IF(OR(ISBLANK($B11),$D11<0),"",ROW(A11)-7) -> 4. | B11: Vrbka Josef | C11: TJ Třebíč | D11: Dci | E11: =SUM(F11:G11) -> 519 | F11: 360 | G11: 159 | H11: 11
A12: =IF(OR(ISBLANK($B12),$D12<0),"",ROW(A12)-7) -> 5. | B12: Stehlík Petr | C12: TJ N. Město na M. | D12: dci | E12: =SUM(F12:G12) -> 518 | F12: 348 | G12: 170 | H12: 9
A13: =IF(OR(ISBLANK($B13),$D13<0),"",ROW(A13)-7) -> 6. | B13: Poula Matěj | C13: Sokol Chotoviny | D13: Dci | E13: =SUM(F13:G13) -> 510 | F13: 334 | G13: 176 | H13: 11
A14: =IF(OR(ISBLANK($B14),$D14<0),"",ROW(A14)-7) -> 7. | B14: Večerka Kristián | C14: TJ Kunžak | D14: Dci | E14: =SUM(F14:G14) -> 508 | F14: 344 | G14: 164 | H14: 5
A15: =IF(OR(ISBLANK($B15),$D15<0),"",ROW(A15)-7) -> 8. | B15: Diviš David | C15: KK Lokomotiva Tábor | D15: Dci | E15: =SUM(F15:G15) -> 499 | F15: 340 | G15: 159 | H15: 10
A16: =IF(OR(ISBLANK($B16),$D16<0),"",ROW(A16)-7) -> 9. | B16: Vaňata Jindřich | C16: TJ Sokol Písek | D16: Dci | E16: =SUM(F16:G16) -> 480 | F16: 356 | G16: 124 | H16: 17
A17: =IF(OR(ISBLANK($B17),$D17<0),"",ROW(A17)-7) -> 10. | B17: Šimsa Matouš | C17: TJ Spartak Pelhřimov | D17: Dci | E17: =SUM(F17:G17) -> 477 | F17: 348 | G17: 129 | H17: 11
A18: =IF(OR(ISBLANK($B18),$D18<0),"",ROW(A18)-7) -> 11. | B18: Turek Tomáš | C18: TJ Spartak Pelhřimov | D18: Dci | E18: =SUM(F18:G18) -> 466 | F18: 313 | G18: 153 | H18: 10
A19: =IF(OR(ISBLANK($B19),$D19<0),"",ROW(A19)-7) -> 12. | B19: Strupek Matěj | C19: TJ Spartak Pelhřimov | D19: Dci | E19: =SUM(F19:G19) -> 463 | F19: 327 | G19: 136 | H19: 12
A20: =IF(OR(ISBLANK($B20),$D20<0),"",ROW(A20)-7) -> 13. | B20: Liška David | C20: TJ Sokol Šanov | D20: Dci | E20: =SUM(F20:G20) -> 403 | F20: 303 | G20: 100 | H20: 25
A21: =IF(OR(ISBLANK($B21),$D21<0),"",ROW(A21)-7) -> 14. | B21: Flachs Tomáš | C21: KK Lokomotiva Tábor | D21: Dci | E21: =SUM(F21:G21) -> 357 | F21: 254 | G21: 103 | H21: 25
A22: 15. | B22: Křemenová Kateřina | C22: Sokol Chotoviny | D22: Dky | E22: =SUM(F22:G22) -> 528 | F22: 351 | G22: 177 | H22: 6
A23: 16. | B23: Melicharová Lucie | C23: TJ Spartak Pelhřimov | D23: Dky | E23: =SUM(F23:G23) -> 523 | F23: 354 | G23: 169 | H23: 7
A24: 17. | B24: Morávková Sylva | C24: TJ Sokol Písek | D24: Dky | E24: =SUM(F24:G24) -> 484 | F24: 343 | G24: 141 | H24: 12
A25: 18. | B25: Dvořáková Barbora | C25: KK Lokomotiva Tábor | D25: Dky | E25: =SUM(F25:G25) -> 480 | F25: 352 | G25: 128 | H25: 16
A26: 19. | B26: Pavlíková Helena | C26: TJ Spartak Pelhřimov | D26: Dky | E26: =SUM(F26:G26) -> 479 | F26: 320 | G26: 159 | H26: 10
A27: 20. | B27: Kochová Eliška | C27: TJ Spartak Pelhřimov | D27: Dky | E27: =SUM(F27:G27) -> 476 | F27: 344 | G27: 132 | H27: 9
A28: 21. | B28: Pípalová Aneta | C28: TJ Spartak Pelhřimov | D28: Dky | E28: =SUM(F28:G28) -> 469 | F28: 340 | G28: 129 | H28: 18
A29: 22. | B29: Vrbová Gabriela | C29: KK Lokomotiva Tábor | D29: Dky | E29: =SUM(F29:G29) -> 374 | F29: 261 | G29: 113 | H29: 26
E30: =SUM(F30:G30) -> 0
E31: 0
E32: 0
E33: 0
E34: 0
E35: 0
E36: 0
E37: 0
E38: 0
E39: 0
E40: 0
E41: 0
E42: 0
A43: =IF(OR(ISBLANK($B43),$D43<0),"",ROW(A43)-7) ->  | E43: 0
A44: =IF(OR(ISBLANK($B44),$D44<0),"",ROW(A44)-7) ->  | E44: 0
A45: =IF(OR(ISBLANK($B45),$D45<0),"",ROW(A45)-7) ->  | E45: 0
A46: =IF(OR(ISBLANK($B46),$D46<0),"",ROW(A46)-7) ->  | E46: 0
A47: =IF(OR(ISBLANK($B47),$D47<0),"",ROW(A47)-7) ->  | E47: 0
A48: =IF(OR(ISBLANK($B48),$D48<0),"",ROW(A48)-7) ->  | E48: 0
A49: =IF(OR(ISBLANK($B49),$D49<0),"",ROW(A49)-7) ->  | E49: 0
A50: =IF(OR(ISBLANK($B50),$D50<0),"",ROW(A50)-7) ->  | E50: 0
A51: =IF(OR(ISBLANK($B51),$D51<0),"",ROW(A51)-7) ->  | E51: 0
A52: =IF(OR(ISBLANK($B52),$D52<0),"",ROW(A52)-7) ->  | E52: 0
A53: =IF(OR(ISBLANK($B53),$D53<0),"",ROW(A53)-7) ->  | E53: 0
A54: =IF(OR(ISBLANK($B54),$D54<0),"",ROW(A54)-7) ->  | E54: 0
A55: =IF(OR(ISBLANK($B55),$D55<0),"",ROW(A55)-7) ->  | E55: 0
A56: =IF(OR(ISBLANK($B56),$D56<0),"",ROW(A56)-7) ->  | E56: 0
A57: =IF(OR(ISBLANK($B57),$D57<0),"",ROW(A57)-7) ->  | E57: 0
A58: =IF(OR(ISBLANK($B58),$D58<0),"",ROW(A58)-7) ->  | E58: 0
A59: =IF(OR(ISBLANK($B59),$D59<0),"",ROW(A59)-7) ->  | E59: 0
A60: =IF(OR(ISBLANK($B60),$D60<0),"",ROW(A60)-7) ->  | E60: 0
A61: =IF(OR(ISBLANK($B61),$D61<0),"",ROW(A61)-7) ->  | E61: 0
A62: =IF(OR(ISBLANK($B62),$D62<0),"",ROW(A62)-7) ->  | E62: 0
A63: =IF(OR(ISBLANK($B63),$D63<0),"",ROW(A63)-7) ->  | E63: 0
A64: =IF(OR(ISBLANK($B64),$D64<0),"",ROW(A64)-7) ->  | E64: 0
A65: =IF(OR(ISBLANK($B65),$D65<0),"",ROW(A65)-7) ->  | E65: =IF(OR(ISBLANK($F65))," ",F65+G65) -> 
A66: =IF(OR(ISBLANK($B66),$D66<0),"",ROW(A66)-7) ->  | E66: =IF(OR(ISBLANK($F66))," ",F66+G66) -> 
A67: =IF(OR(ISBLANK($B67),$D67<0),"",ROW(A67)-7) ->  | E67: =IF(OR(ISBLANK($F67))," ",F67+G67) -> 
A68: =IF(OR(ISBLANK($B68),$D68<0),"",ROW(A68)-7) ->  | E68: =IF(OR(ISBLANK($F68))," ",F68+G68) -> 
A69: =IF(OR(ISBLANK($B69),$D69<0),"",ROW(A69)-7) ->  | E69: =IF(OR(ISBLANK($F69))," ",F69+G69) -> 
A70: =IF(OR(ISBLANK($B70),$D70<0),"",ROW(A70)-7) -> 
A71: =IF(OR(ISBLANK($B71),$D71<0),"",ROW(A71)-7) -> 
A72: =IF(OR(ISBLANK($B72),$D72<0),"",ROW(A72)-7) -> 
A73: =IF(OR(ISBLANK($B73),$D73<0),"",ROW(A73)-7) -> 
A74: =IF(OR(ISBLANK($B74),$D74<0),"",ROW(A74)-7) -> 
A75: =IF(OR(ISBLANK($B75),$D75<0),"",ROW(A75)-7) -> 
A76: =IF(OR(ISBLANK($B76),$D76<0),"",ROW(A76)-7) -> 
A77: =IF(OR(ISBLANK($B77),$D77<0),"",ROW(A77)-7) -> 
A78: =IF(OR(ISBLANK($B78),$D78<0),"",ROW(A78)-7) -> 
A79: =IF(OR(ISBLANK($B79),$D79<0),"",ROW(A79)-7) -> 
A80: =IF(OR(ISBLANK($B80),$D80<0),"",ROW(A80)-7) -> 
A81: =IF(OR(ISBLANK($B81),$D81<0),"",ROW(A81)-7) -> 
A82: =IF(OR(ISBLANK($B82),$D82<0),"",ROW(A82)-7) -> 

Sheet České Velenice
A1: České Velenice | C1: dky - dívky | D1: Celkem | E1: Buňky s touto barvou pozadí jsou uzamčeny. Vyplňovat a měnit obsah buňky lze pouze u buněk bez pozadí! | I1: =COUNTIF(F8:F45,">0") -> 22
C2: dci - hoši
D3: =SUM(#REF!) -> 
A5: . | B5: Jméno | C5: Oddíl | D5: Kateg. | E5: Celkem | F5: Plné | G5: Dor. | H5: Chyb
I7: Změny?
A8: =IF(OR(ISBLANK($B8),$D8<0),"",ROW(A8)-7) -> 1. | B8: Neuvirt Jakub | C8: TJ Centr. Dačice | D8: dci | E8: =SUM(F8:G8) -> 610 | F8: 364 | G8: 246 | H8: 0
A9: =IF(OR(ISBLANK($B9),$D9<0),"",ROW(A9)-7) -> 2. | B9: Koželuh David | C9: TJ Lok. Č. Velenice | D9: Dci | E9: =SUM(F9:G9) -> 603 | F9: 383 | G9: 220 | H9: 5
A10: =IF(OR(ISBLANK($B10),$D10<0),"",ROW(A10)-7) -> 3. | B10: Hron Jakub | C10: TJ Centr. Dačice | D10: dci | E10: =SUM(F10:G10) -> 587 | F10: 377 | G10: 210 | H10: 5
A11: =IF(OR(ISBLANK($B11),$D11<0),"",ROW(A11)-7) -> 4. | B11: Schober Dominik | C11: TJ Sn Kamenice n. L. | D11: Dci | E11: =SUM(F11:G11) -> 586 | F11: 379 | G11: 207 | H11: 4
A12: =IF(OR(ISBLANK($B12),$D12<0),"",ROW(A12)-7) -> 5. | B12: Přikryl Lukáš | C12: TJ Centr. Dačice | D12: dci | E12: =SUM(F12:G12) -> 564 | F12: 348 | G12: 216 | H12: 6
A13: =IF(OR(ISBLANK($B13),$D13<0),"",ROW(A13)-7) -> 6. | B13: Šindelář Jaroslav | C13: TJ Sn Kamenice n. L. | D13: dci | E13: =SUM(F13:G13) -> 558 | F13: 358 | G13: 200 | H13: 4
A14: =IF(OR(ISBLANK($B14),$D14<0),"",ROW(A14)-7) -> 7. | B14: Pekárek Matěj | C14: TJ Blatná | D14: Dci | E14: =SUM(F14:G14) -> 538 | F14: 391 | G14: 147 | H14: 9
A15: =IF(OR(ISBLANK($B15),$D15<0),"",ROW(A15)-7) -> 8. | B15: Rychtařík Václav | C15: TJ Sn Kamenice n. L. | D15: Dci | E15: =SUM(F15:G15) -> 536 | F15: 369 | G15: 167 | H15: 8
A16: =IF(OR(ISBLANK($B16),$D16<0),"",ROW(A16)-7) -> 9. | B16: Petrů Tobiáš | C16: TJ Sokol Chýnov | D16: dci | E16: =SUM(F16:G16) -> 524 | F16: 382 | G16: 142 | H16: 8
A17: =IF(OR(ISBLANK($B17),$D17<0),"",ROW(A17)-7) -> 10. | B17: Štich Jaroslav | C17: Vltavan Loučovice | D17: Dci | E17: =SUM(F17:G17) -> 514 | F17: 371 | G17: 143 | H17: 15
A18: =IF(OR(ISBLANK($B18),$D18<0),"",ROW(A18)-7) -> 11. | B18: Břečka Adam | C18: TJ Sok. Slavonice | D18: dci | E18: =SUM(F18:G18) -> 497 | F18: 339 | G18: 158 | H18: 18
A19: =IF(OR(ISBLANK($B19),$D19<0),"",ROW(A19)-7) -> 12. | B19: Mihala Marko | C19: TJ Lok. Č. Velenice | D19: Dci | E19: =SUM(F19:G19) -> 496 | F19: 356 | G19: 140 | H19: 10
A20: =IF(OR(ISBLANK($B20),$D20<0),"",ROW(A20)-7) -> 13. | B20: Sitter Marek | C20: TJ Blatná | D20: Dci | E20: =SUM(F20:G20) -> 495 | F20: 364 | G20: 131 | H20: 17
A21: =IF(OR(ISBLANK($B21),$D21<0),"",ROW(A21)-7) -> 14. | B21: Kupar Matěj | C21: TJ Blatná | D21: Dci | E21: =SUM(F21:G21) -> 475 | F21: 344 | G21: 131 | H21: 15
A22: =IF(OR(ISBLANK($B22),$D22<0),"",ROW(A22)-7) -> 15. | B22: Matoušková Pavlína | C22: TJ Sok. Slavonice | D22: Dky | E22: =SUM(F22:G22) -> 579 | F22: 384 | G22: 195 | H22: 6
A23: =IF(OR(ISBLANK($B23),$D23<0),"",ROW(A23)-7) -> 16. | B23: Svačinová Beáta | C23: TJ Blatná | D23: Dky | E23: =SUM(F23:G23) -> 556 | F23: 358 | G23: 198 | H23: 3
A24: =IF(OR(ISBLANK($B24),$D24<0),"",ROW(A24)-7) -> 17. | B24: Doležalová Bára | C24: TJ Centr. Dačice | D24: Dky | E24: =SUM(F24:G24) -> 546 | F24: 373 | G24: 173 | H24: 5
A25: =IF(OR(ISBLANK($B25),$D25<0),"",ROW(A25)-7) -> 18. | B25: Suchánková Daniela | C25: Vltavan Loučovice | D25: Dky | E25: =SUM(F25:G25) -> 540 | F25: 357 | G25: 183 | H25: 6
A26: =IF(OR(ISBLANK($B26),$D26<0),"",ROW(A26)-7) -> 19. | B26: Baťková Karolína | C26: TJ Blatná | D26: Dky | E26: =SUM(F26:G26) -> 540 | F26: 368 | G26: 172 | H26: 9
A27: =IF(OR(ISBLANK($B27),$D27<0),"",ROW(A27)-7) -> 20. | B27: Kuncová Karolína | C27: TJ Centr. Dačice | D27: Dky | E27: =SUM(F27:G27) -> 528 | F27: 357 | G27: 171 | H27: 5
A28: =IF(OR(ISBLANK($B28),$D28<0),"",ROW(A28)-7) -> 21. | B28: Cimplová Tereza | C28: TJ Sn Kamenice n. L. | D28: Dky | E28: =SUM(F28:G28) -> 499 | F28: 357 | G28: 142 | H28: 9
A29: =IF(OR(ISBLANK($B29),$D29<0),"",ROW(A29)-7) -> 22. | B29: Pahl Johanna | C29: TJ Sok. Slavonice | D29: Dky | E29: =SUM(F29:G29) -> 475 | F29: 339 | G29: 136 | H29: 15
E30: =SUM(F30:G30) -> 0
E31: 0
A32: =IF(OR(ISBLANK($B32),$D32<0),"",ROW(A32)-7) ->  | E32: 0
A33: =IF(OR(ISBLANK($B33),$D33<0),"",ROW(A33)-7) ->  | E33: 0
A34: =IF(OR(ISBLANK($B34),$D34<0),"",ROW(A34)-7) -> 
A35: =IF(OR(ISBLANK($B35),$D35<0),"",ROW(A35)-7) ->  | E35: =SUM(F35:G35) -> 0
A36: =IF(OR(ISBLANK($B36),$D36<0),"",ROW(A36)-7) ->  | E36: 0
A37: =IF(OR(ISBLANK($B37),$D37<0),"",ROW(A37)-7) ->  | E37: 0
A38: =IF(OR(ISBLANK($B38),$D38<0),"",ROW(A38)-7) ->  | E38: 0
A39: =IF(OR(ISBLANK($B39),$D39<0),"",ROW(A39)-7) ->  | E39: 0
A40: =IF(OR(ISBLANK($B40),$D40<0),"",ROW(A40)-7) ->  | E40: 0
A41: =IF(OR(ISBLANK($B41),$D41<0),"",ROW(A41)-7) ->  | E41: 0
A42: =IF(OR(ISBLANK($B42),$D42<0),"",ROW(A42)-7) ->  | E42: 0
A43: =IF(OR(ISBLANK($B43),$D43<0),"",ROW(A43)-7) ->  | E43: 0
A44: =IF(OR(ISBLANK($B44),$D44<0),"",ROW(A44)-7) ->  | E44: 0
A45: =IF(OR(ISBLANK($B45),$D45<0),"",ROW(A45)-7) ->  | E45: 0
A46: =IF(OR(ISBLANK($B46),$D46<0),"",ROW(A46)-7) ->  | E46: 0
A47: =IF(OR(ISBLANK($B47),$D47<0),"",ROW(A47)-7) ->  | E47: 0
A48: =IF(OR(ISBLANK($B48),$D48<0),"",ROW(A48)-7) ->  | E48: 0
A49: =IF(OR(ISBLANK($B49),$D49<0),"",ROW(A49)-7) ->  | E49: 0
A50: =IF(OR(ISBLANK($B50),$D50<0),"",ROW(A50)-7) ->  | E50: 0
A51: =IF(OR(ISBLANK($B51),$D51<0),"",ROW(A51)-7) ->  | E51: 0
A52: =IF(OR(ISBLANK($B52),$D52<0),"",ROW(A52)-7) ->  | E52: 0
A53: =IF(OR(ISBLANK($B53),$D53<0),"",ROW(A53)-7) ->  | E53: 0
A54: =IF(OR(ISBLANK($B54),$D54<0),"",ROW(A54)-7) ->  | E54: 0
A55: =IF(OR(ISBLANK($B55),$D55<0),"",ROW(A55)-7) ->  | E55: 0
A56: =IF(OR(ISBLANK($B56),$D56<0),"",ROW(A56)-7) ->  | E56: 0
A57: =IF(OR(ISBLANK($B57),$D57<0),"",ROW(A57)-7) ->  | E57: 0
A58: =IF(OR(ISBLANK($B58),$D58<0),"",ROW(A58)-7) ->  | E58: 0
A59: =IF(OR(ISBLANK($B59),$D59<0),"",ROW(A59)-7) ->  | E59: 0
A60: =IF(OR(ISBLANK($B60),$D60<0),"",ROW(A60)-7) ->  | E60: 0
A61: =IF(OR(ISBLANK($B61),$D61<0),"",ROW(A61)-7) ->  | E61: 0
A62: =IF(OR(ISBLANK($B62),$D62<0),"",ROW(A62)-7) ->  | E62: 0
A63: =IF(OR(ISBLANK($B63),$D63<0),"",ROW(A63)-7) ->  | E63: =IF(OR(ISBLANK($F63))," ",F63+G63) -> 
A64: =IF(OR(ISBLANK($B64),$D64<0),"",ROW(A64)-7) -> 
A65: =IF(OR(ISBLANK($B65),$D65<0),"",ROW(A65)-7) -> 
A66: =IF(OR(ISBLANK($B66),$D66<0),"",ROW(A66)-7) -> 
A67: =IF(OR(ISBLANK($B67),$D67<0),"",ROW(A67)-7) -> 
A68: =IF(OR(ISBLANK($B68),$D68<0),"",ROW(A68)-7) -> 
A69: =IF(OR(ISBLANK($B69),$D69<0),"",ROW(A69)-7) -> 
A70: =IF(OR(ISBLANK($B70),$D70<0),"",ROW(A70)-7) -> 
A71: =IF(OR(ISBLANK($B71),$D71<0),"",ROW(A71)-7) -> 
A72: =IF(OR(ISBLANK($B72),$D72<0),"",ROW(A72)-7) -> 
A73: =IF(OR(ISBLANK($B73),$D73<0),"",ROW(A73)-7) -> 
A74: =IF(OR(ISBLANK($B74),$D74<0),"",ROW(A74)-7) -> 
A75: =IF(OR(ISBLANK($B75),$D75<0),"",ROW(A75)-7) -> 
A76: =IF(OR(ISBLANK($B76),$D76<0),"",ROW(A76)-7) -> 
A77: =IF(OR(ISBLANK($B77),$D77<0),"",ROW(A77)-7) -> 
A78: =IF(OR(ISBLANK($B78),$D78<0),"",ROW(A78)-7) -> 
A79: =IF(OR(ISBLANK($B79),$D79<0),"",ROW(A79)-7) -> 
A80: =IF(OR(ISBLANK($B80),$D80<0),"",ROW(A80)-7) -> 

Sheet Lomnice
A1: Lomnice | C1: dky - dívky | D1: Celkem | E1: Buňky s touto barvou pozadí jsou uzamčeny. Vyplňovat a měnit obsah buňky lze pouze u buněk bez pozadí! | I1: =COUNTIF(F8:F47,">0") -> 24
C2: dci - hoši
D3: =SUM(#REF!) -> 
A5: . | B5: Jméno | C5: Oddíl | D5: Kateg. | E5: Celkem | F5: Plné | G5: Dor. | H5: Chyb
D7: Kategorie | I7: Změny?
A8: =IF(OR(ISBLANK($B8),$D8<0),"",ROW(A8)-7) -> 1. | B8: Wittwar Dominik | C8: Kuželky Jiskra Hazlov | D8: Dci | E8: =IF(OR(ISBLANK($F8))," ",F8+G8) -> 616 | F8: 400 | G8: 216 | H8: 2
A9: =IF(OR(ISBLANK($B9),$D9<0),"",ROW(A9)-7) -> 2. | B9: Drugda Michal | C9: TJ Slavoj Plzeň | D9: Dci | E9: =IF(OR(ISBLANK($F9))," ",F9+G9) -> 601 | F9: 403 | G9: 198 | H9: 3
A10: =IF(OR(ISBLANK($B10),$D10<0),"",ROW(A10)-7) -> 3. | B10: Jelínek Martin | C10: Kuželky Holýšov | D10: Dci | E10: =IF(OR(ISBLANK($F10))," ",F10+G10) -> 585 | F10: 369 | G10: 216 | H10: 8
A11: =IF(OR(ISBLANK($B11),$D11<0),"",ROW(A11)-7) -> 4. | B11: Duhai Radek | C11: Kuželky Aš | D11: Dci | E11: =IF(OR(ISBLANK($F11))," ",F11+G11) -> 578 | F11: 364 | G11: 214 | H11: 3
A12: =IF(OR(ISBLANK($B12),$D12<0),"",ROW(A12)-7) -> 5. | B12: Fišer Josef | C12: CB Dobřany | D12: Dci | E12: =IF(OR(ISBLANK($F12))," ",F12+G12) -> 578 | F12: 384 | G12: 194 | H12: 2
A13: =IF(OR(ISBLANK($B13),$D13<0),"",ROW(A13)-7) -> 6. | B13: Ritschel Jan | C13: TJ Lomnice | D13: Dci | E13: =IF(OR(ISBLANK($F13))," ",F13+G13) -> 575 | F13: 391 | G13: 184 | H13: 7
A14: =IF(OR(ISBLANK($B14),$D14<0),"",ROW(A14)-7) -> 7. | B14: Kaas Jáchym | C14: TJ Slavoj Plzeň | D14: Dci | E14: =IF(OR(ISBLANK($F14))," ",F14+G14) -> 570 | F14: 360 | G14: 210 | H14: 4
A15: =IF(OR(ISBLANK($B15),$D15<0),"",ROW(A15)-7) -> 8. | B15: Hlaváč David | C15: TJ Sn Karlovy Vary | D15: Dci | E15: =IF(OR(ISBLANK($F15))," ",F15+G15) -> 570 | F15: 381 | G15: 189 | H15: 5
A16: =IF(OR(ISBLANK($B16),$D16<0),"",ROW(A16)-7) -> 9. | B16: Stehlík Jiří | C16: Kuželky Holýšov | D16: Dci | E16: =IF(OR(ISBLANK($F16))," ",F16+G16) -> 555 | F16: 370 | G16: 185 | H16: 5
A17: =IF(OR(ISBLANK($B17),$D17<0),"",ROW(A17)-7) -> 10. | B17: Marcelly David | C17: SKK Podbořany | D17: Dci | E17: =IF(OR(ISBLANK($F17))," ",F17+G17) -> 555 | F17: 373 | G17: 182 | H17: 4
A18: =IF(OR(ISBLANK($B18),$D18<0),"",ROW(A18)-7) -> 11. | B18: Kříž Zdeněk | C18: TJ Sn Karlovy Vary | D18: Dci | E18: =IF(OR(ISBLANK($F18))," ",F18+G18) -> 533 | F18: 353 | G18: 180 | H18: 9
A19: =IF(OR(ISBLANK($B19),$D19<0),"",ROW(A19)-7) -> 12. | B19: Rada Jakub | C19: SKK Podbořany | D19: Dci | E19: =IF(OR(ISBLANK($F19))," ",F19+G19) -> 527 | F19: 360 | G19: 167 | H19: 11
A20: =IF(OR(ISBLANK($B20),$D20<0),"",ROW(A20)-7) -> 13. | B20: Pavlík Samuel | C20: TJ Sn Karlovy Vary | D20: Dci | E20: =IF(OR(ISBLANK($F20))," ",F20+G20) -> 495 | F20: 367 | G20: 128 | H20: 17
A21: =IF(OR(ISBLANK($B21),$D21<0),"",ROW(A21)-7) -> 14. | B21: Šnirc Dominik | C21: Kuželky Holýšov | D21: Dci | E21: =IF(OR(ISBLANK($F21))," ",F21+G21) -> 473 | F21: 333 | G21: 140 | H21: 15
A22: =IF(OR(ISBLANK($B22),$D22<0),"",ROW(A22)-7) -> 15. | B22: Volena Daniel | C22: Kuželky Holýšov | D22: Dci | E22: =IF(OR(ISBLANK($F22))," ",F22+G22) -> 466 | F22: 333 | G22: 133 | H22: 15
A23: =IF(OR(ISBLANK($B23),$D23<0),"",ROW(A23)-7) -> 16. | B23: Zídek Denis | C23: Kuželky Holýšov | D23: Dci | E23: =IF(OR(ISBLANK($F23))," ",F23+G23) -> 454 | F23: 318 | G23: 136 | H23: 12
A24: =IF(OR(ISBLANK($B24),$D24<0),"",ROW(A24)-7) -> 17. | B24: Suchánková Vendula | C24: Kuželky Jiskra Hazlov | D24: Dky | E24: =IF(OR(ISBLANK($F24))," ",F24+G24) -> 630 | F24: 384 | G24: 246 | H24: 5
A25: =IF(OR(ISBLANK($B25),$D25<0),"",ROW(A25)-7) -> 18. | B25: Repčíková Kristýna | C25: Kuželky Jiskra Hazlov | D25: Dky | E25: =IF(OR(ISBLANK($F25))," ",F25+G25) -> 580 | F25: 387 | G25: 193 | H25: 6
A26: =IF(OR(ISBLANK($B26),$D26<0),"",ROW(A26)-7) -> 19. | B26: Šuterová Nela | C26: KK Slavia Praha | D26: Dky | E26: =IF(OR(ISBLANK($F26))," ",F26+G26) -> 560 | F26: 379 | G26: 181 | H26: 6
A27: =IF(OR(ISBLANK($B27),$D27<0),"",ROW(A27)-7) -> 20. | B27: Hessová Lada | C27: TJ Slavoj Plzeň | D27: Dky | E27: =IF(OR(ISBLANK($F27))," ",F27+G27) -> 552 | F27: 375 | G27: 177 | H27: 5
A28: =IF(OR(ISBLANK($B28),$D28<0),"",ROW(A28)-7) -> 21. | B28: Vágnerová Matylda | C28: TJ Sokol Zahořany | D28: Dky | E28: =IF(OR(ISBLANK($F28))," ",F28+G28) -> 531 | F28: 369 | G28: 162 | H28: 10
A29: =IF(OR(ISBLANK($B29),$D29<0),"",ROW(A29)-7) -> 22. | B29: Blechová Anežka | C29: CB Dobřany | D29: Dky | E29: =IF(OR(ISBLANK($F29))," ",F29+G29) -> 521 | F29: 385 | G29: 136 | H29: 10
A30: =IF(OR(ISBLANK($B30),$D30<0),"",ROW(A30)-7) -> 23. | B30: Vaněčková Valerie | C30: CB Dobřany | D30: Dky | E30: =IF(OR(ISBLANK($F30))," ",F30+G30) -> 520 | F30: 358 | G30: 162 | H30: 11
A31: =IF(OR(ISBLANK($B31),$D31<0),"",ROW(A31)-7) -> 24. | B31: Bajerová Natálie | C31: TJ Slavoj Plzeň | D31: Dky | E31: =IF(OR(ISBLANK($F31))," ",F31+G31) -> 479 | F31: 342 | G31: 137 | H31: 19
A32: =IF(OR(ISBLANK($B32),$D32<0),"",ROW(A32)-7) ->  | E32: =IF(OR(ISBLANK($F32))," ",F32+G32) -> 
A33: =IF(OR(ISBLANK($B33),$D33<0),"",ROW(A33)-7) -> 
A34: =IF(OR(ISBLANK($B34),$D34<0),"",ROW(A34)-7) -> 
A35: =IF(OR(ISBLANK($B35),$D35<0),"",ROW(A35)-7) -> 
A36: =IF(OR(ISBLANK($B36),$D36<0),"",ROW(A36)-7) -> 
A37: =IF(OR(ISBLANK($B37),$D37<0),"",ROW(A37)-7) -> 
A38: =IF(OR(ISBLANK($B38),$D38<0),"",ROW(A38)-7) -> 
A39: =IF(OR(ISBLANK($B39),$D39<0),"",ROW(A39)-7) -> 
A40: =IF(OR(ISBLANK($B40),$D40<0),"",ROW(A40)-7) -> 
A41: =IF(OR(ISBLANK($B41),$D41<0),"",ROW(A41)-7) -> 
A42: =IF(OR(ISBLANK($B42),$D42<0),"",ROW(A42)-7) -> 
A43: =IF(OR(ISBLANK($B43),$D43<0),"",ROW(A43)-7) -> 
A44: =IF(OR(ISBLANK($B44),$D44<0),"",ROW(A44)-7) -> 
A45: =IF(OR(ISBLANK($B45),$D45<0),"",ROW(A45)-7) -> 
A46: =IF(OR(ISBLANK($B46),$D46<0),"",ROW(A46)-7) -> 
A47: =IF(OR(ISBLANK($B47),$D47<0),"",ROW(A47)-7) -> 
A48: =IF(OR(ISBLANK($B48),$D48<0),"",ROW(A48)-7) -> 
A49: =IF(OR(ISBLANK($B49),$D49<0),"",ROW(A49)-7) -> 
A50: =IF(OR(ISBLANK($B50),$D50<0),"",ROW(A50)-7) -> 
A51: =IF(OR(ISBLANK($B51),$D51<0),"",ROW(A51)-7) -> 44. | B51: Baťková Karolína | C51: TJ Blatná
A52: =IF(OR(ISBLANK($B52),$D52<0),"",ROW(A52)-7) -> 45. | B52: Kupar Matěj | C52: TJ Blatná
A53: =IF(OR(ISBLANK($B53),$D53<0),"",ROW(A53)-7) -> 46. | B53: Pekárek Matěj | C53: TJ Blatná
A54: =IF(OR(ISBLANK($B54),$D54<0),"",ROW(A54)-7) -> 47. | B54: Sitter Marek | C54: TJ Blatná
A55: =IF(OR(ISBLANK($B55),$D55<0),"",ROW(A55)-7) -> 48. | B55: Svačinová Beáta | C55: TJ Blatná
A56: =IF(OR(ISBLANK($B56),$D56<0),"",ROW(A56)-7) -> 49. | B56: Rabas Tomáš | C56: TJ Teplice Letná
A57: =IF(OR(ISBLANK($B57),$D57<0),"",ROW(A57)-7) -> 50. | B57: Růt Jonáš | C57: SKK Podbořany
A58: =IF(OR(ISBLANK($B58),$D58<0),"",ROW(A58)-7) -> 
A59: =IF(OR(ISBLANK($B59),$D59<0),"",ROW(A59)-7) -> 
A60: =IF(OR(ISBLANK($B60),$D60<0),"",ROW(A60)-7) -> 
A61: =IF(OR(ISBLANK($B61),$D61<0),"",ROW(A61)-7) -> 
A62: =IF(OR(ISBLANK($B62),$D62<0),"",ROW(A62)-7) -> 
A63: =IF(OR(ISBLANK($B63),$D63<0),"",ROW(A63)-7) -> 
A64: =IF(OR(ISBLANK($B64),$D64<0),"",ROW(A64)-7) -> 
A65: =IF(OR(ISBLANK($B65),$D65<0),"",ROW(A65)-7) ->  | E65: =IF(OR(ISBLANK($F65))," ",F65+G65) -> 
A66: =IF(OR(ISBLANK($B66),$D66<0),"",ROW(A66)-7) ->  | E66: =IF(OR(ISBLANK($F66))," ",F66+G66) -> 
A67: =IF(OR(ISBLANK($B67),$D67<0),"",ROW(A67)-7) ->  | E67: =IF(OR(ISBLANK($F67))," ",F67+G67) -> 
A68: =IF(OR(ISBLANK($B68),$D68<0),"",ROW(A68)-7) ->  | E68: =IF(OR(ISBLANK($F68))," ",F68+G68) -> 
A69: =IF(OR(ISBLANK($B69),$D69<0),"",ROW(A69)-7) ->  | E69: =IF(OR(ISBLANK($F69))," ",F69+G69) -> 
A70: =IF(OR(ISBLANK($B70),$D70<0),"",ROW(A70)-7) -> 
A71: =IF(OR(ISBLANK($B71),$D71<0),"",ROW(A71)-7) -> 
A72: =IF(OR(ISBLANK($B72),$D72<0),"",ROW(A72)-7) -> 
A73: =IF(OR(ISBLANK($B73),$D73<0),"",ROW(A73)-7) -> 
A74: =IF(OR(ISBLANK($B74),$D74<0),"",ROW(A74)-7) -> 
A75: =IF(OR(ISBLANK($B75),$D75<0),"",ROW(A75)-7) -> 
A76: =IF(OR(ISBLANK($B76),$D76<0),"",ROW(A76)-7) -> 
A77: =IF(OR(ISBLANK($B77),$D77<0),"",ROW(A77)-7) -> 
A78: =IF(OR(ISBLANK($B78),$D78<0),"",ROW(A78)-7) -> 
A79: =IF(OR(ISBLANK($B79),$D79<0),"",ROW(A79)-7) -> 
A80: =IF(OR(ISBLANK($B80),$D80<0),"",ROW(A80)-7) -> 
A81: =IF(OR(ISBLANK($B81),$D81<0),"",ROW(A81)-7) -> 
A82: =IF(OR(ISBLANK($B82),$D82<0),"",ROW(A82)-7) -> 

Sheet Šumperk
A1: Šumperk | C1: dky - dívky | D1: Celkem | E1: Buňky s touto barvou pozadí jsou uzamčeny. Vyplňovat a měnit obsah buňky lze pouze u buněk bez pozadí! | I1: =COUNTIF(F8:F38,">0") -> 25
C2: dci - hoši
D3: =SUM(#REF!) -> 
A5: . | B5: Jméno | C5: Oddíl | D5: Kateg. | E5: Celkem | F5: Plné | G5: Dor. | H5: Chyb
D7: Kategorie | I7: Změny?
A8: =IF(OR(ISBLANK($B8),$D8<0),"",ROW(A8)-7) -> 1. | B8: Močár Pavel | C8: TJ Sok. Přemyslovice | D8: Dci | E8: =SUM(F8:G8) -> 579 | F8: 376 | G8: 203 | H8: 4
A9: =IF(OR(ISBLANK($B9),$D9<0),"",ROW(A9)-7) -> 2. | B9: Morávek Vojtěch | C9: TJ Jiskra Hylváty | D9: Dci | E9: =SUM(F9:G9) -> 570 | F9: 404 | G9: 166 | H9: 8
A10: =IF(OR(ISBLANK($B10),$D10<0),"",ROW(A10)-7) -> 3. | B10: Šípek Anthony | C10: TJ Jiskra Hylváty | D10: Dci | E10: =SUM(F10:G10) -> 569 | F10: 372 | G10: 197 | H10: 6
A11: =IF(OR(ISBLANK($B11),$D11<0),"",ROW(A11)-7) -> 4. | B11: Kolář Miroslav | C11: SK Rybník | D11: dci | E11: =SUM(F11:G11) -> 562 | F11: 382 | G11: 180 | H11: 3
A12: =IF(OR(ISBLANK($B12),$D12<0),"",ROW(A12)-7) -> 5. | B12: Komprs Jiří | C12: TJ Jiskra Hylváty | D12: Dci | E12: =SUM(F12:G12) -> 559 | F12: 374 | G12: 185 | H12: 9
A13: =IF(OR(ISBLANK($B13),$D13<0),"",ROW(A13)-7) -> 6. | B13: Toman Pavel | C13: TJ Sok. Přemyslovice | D13: Dci | E13: =SUM(F13:G13) -> 554 | F13: 361 | G13: 193 | H13: 5
A14: =IF(OR(ISBLANK($B14),$D14<0),"",ROW(A14)-7) -> 7. | B14: Kučerka Tobiáš | C14: TJ H. Benešov | D14: Dci | E14: =SUM(F14:G14) -> 548 | F14: 373 | G14: 175 | H14: 4
A15: =IF(OR(ISBLANK($B15),$D15<0),"",ROW(A15)-7) -> 8. | B15: Kozel Tobiáš | C15: SK Solnice | D15: Dci | E15: =SUM(F15:G15) -> 533 | F15: 365 | G15: 168 | H15: 11
A16: =IF(OR(ISBLANK($B16),$D16<0),"",ROW(A16)-7) -> 9. | B16: Kodytek Jan | C16: TJ Start Rychnov n. K. | D16: Dci | E16: =SUM(F16:G16) -> 519 | F16: 350 | G16: 169 | H16: 4
A17: =IF(OR(ISBLANK($B17),$D17<0),"",ROW(A17)-7) -> 10. | B17: Vejmola Adam | C17: KK Šumperk | D17: Dci | E17: =SUM(F17:G17) -> 518 | F17: 348 | G17: 170 | H17: 7
A18: =IF(OR(ISBLANK($B18),$D18<0),"",ROW(A18)-7) -> 11. | B18: Ševčík Daniel | C18: TJ Odry | D18: Dci | E18: =SUM(F18:G18) -> 516 | F18: 329 | G18: 187 | H18: 8
A19: =IF(OR(ISBLANK($B19),$D19<0),"",ROW(A19)-7) -> 12. | B19: Ryšavý Daniel | C19: SK Solnice | D19: Dci | E19: =SUM(F19:G19) -> 516 | F19: 352 | G19: 164 | H19: 9
A20: =IF(OR(ISBLANK($B20),$D20<0),"",ROW(A20)-7) -> 13. | B20: Dusbaba Vilém | C20: SK Solnice | D20: Dci | E20: =SUM(F20:G20) -> 492 | F20: 345 | G20: 147 | H20: 14
A21: =IF(OR(ISBLANK($B21),$D21<0),"",ROW(A21)-7) -> 14. | B21: Věntuš Lukáš | C21: TJ Opava | D21: Dci | E21: =SUM(F21:G21) -> 473 | F21: 334 | G21: 139 | H21: 16
A22: =IF(OR(ISBLANK($B22),$D22<0),"",ROW(A22)-7) -> 15. | B22: Gulyás Radim | C22: SK Rybník | D22: Dci | E22: =SUM(F22:G22) -> 460 | F22: 319 | G22: 141 | H22: 16
A23: =IF(OR(ISBLANK($B23),$D23<0),"",ROW(A23)-7) -> 16. | B23: Blažek Adam | C23: TJ Jiskra Hylváty | D23: Dci | E23: =SUM(F23:G23) -> 455 | F23: 340 | G23: 115 | H23: 17
A24: =IF(OR(ISBLANK($B24),$D24<0),"",ROW(A24)-7) -> 17. | B24: Doseděl Adam | C24: TJ Sok. Přemyslovice | D24: Dci | E24: =SUM(F24:G24) -> 452 | F24: 318 | G24: 134 | H24: 12
A25: =IF(OR(ISBLANK($B25),$D25<0),"",ROW(A25)-7) -> 18. | B25: Maralík Libor | C25: TJ H. Benešov | D25: Dci | E25: =SUM(F25:G25) -> 448 | F25: 327 | G25: 121 | H25: 17
A26: =IF(OR(ISBLANK($B26),$D26<0),"",ROW(A26)-7) -> 19. | B26: Matuchová Veronika | C26: KK Šumperk | D26: Dky | E26: =SUM(F26:G26) -> 611 | F26: 375 | G26: 236 | H26: 2
A27: =IF(OR(ISBLANK($B27),$D27<0),"",ROW(A27)-7) -> 20. | B27: Juříčková Andrea | C27: TJ Val. Meziříčí | D27: Dky | E27: =SUM(F27:G27) -> 569 | F27: 379 | G27: 190 | H27: 2
A28: =IF(OR(ISBLANK($B28),$D28<0),"",ROW(A28)-7) -> 21. | B28: Bartoníčková Nikola | C28: SK Solnice | D28: Dky | E28: =SUM(F28:G28) -> 538 | F28: 375 | G28: 163 | H28: 9
A29: =IF(OR(ISBLANK($B29),$D29<0),"",ROW(A29)-7) -> 22. | B29: Šindlerová Evelina | C29: SK Solnice | D29: Dky | E29: =SUM(F29:G29) -> 505 | F29: 340 | G29: 165 | H29: 10
A30: =IF(OR(ISBLANK($B30),$D30<0),"",ROW(A30)-7) -> 23. | B30: Šindlerová Violeta | C30: SK Solnice | D30: Dky | E30: =SUM(F30:G30) -> 485 | F30: 342 | G30: 143 | H30: 16
A31: =IF(OR(ISBLANK($B31),$D31<0),"",ROW(A31)-7) -> 24. | B31: Zelinková Lucie | C31: KK Svitavy | D31: Dky | E31: =SUM(F31:G31) -> 474 | F31: 342 | G31: 132 | H31: 8
A32: =IF(OR(ISBLANK($B32),$D32<0),"",ROW(A32)-7) -> 25. | B32: kolářová Laura | C32: SK Rybník | D32: Dky | E32: =SUM(F32:G32) -> 413 | F32: 302 | G32: 111 | H32: 17
A33: =IF(OR(ISBLANK($B33),$D33<0),"",ROW(A33)-7) ->  | E33: =SUM(F33:G33) -> 0
A34: =IF(OR(ISBLANK($B34),$D34<0),"",ROW(A34)-7) ->  | E34: 0
A35: =IF(OR(ISBLANK($B35),$D35<0),"",ROW(A35)-7) ->  | E35: 0
A36: =IF(OR(ISBLANK($B36),$D36<0),"",ROW(A36)-7) ->  | E36: 0
A37: =IF(OR(ISBLANK($B37),$D37<0),"",ROW(A37)-7) ->  | E37: 0
A38: =IF(OR(ISBLANK($B38),$D38<0),"",ROW(A38)-7) ->  | E38: 0
A39: =IF(OR(ISBLANK($B39),$D39<0),"",ROW(A39)-7) ->  | E39: 0
A40: =IF(OR(ISBLANK($B40),$D40<0),"",ROW(A40)-7) ->  | E40: 0
A41: =IF(OR(ISBLANK($B41),$D41<0),"",ROW(A41)-7) ->  | E41: 0
A42: =IF(OR(ISBLANK($B42),$D42<0),"",ROW(A42)-7) ->  | E42: 0
A43: =IF(OR(ISBLANK($B43),$D43<0),"",ROW(A43)-7) ->  | E43: 0
A44: =IF(OR(ISBLANK($B44),$D44<0),"",ROW(A44)-7) ->  | E44: 0
A45: =IF(OR(ISBLANK($B45),$D45<0),"",ROW(A45)-7) ->  | E45: 0
A46: =IF(OR(ISBLANK($B46),$D46<0),"",ROW(A46)-7) ->  | E46: 0
A47: =IF(OR(ISBLANK($B47),$D47<0),"",ROW(A47)-7) ->  | E47: 0
A48: =IF(OR(ISBLANK($B48),$D48<0),"",ROW(A48)-7) ->  | E48: 0
A49: =IF(OR(ISBLANK($B49),$D49<0),"",ROW(A49)-7) ->  | E49: 0
A50: =IF(OR(ISBLANK($B50),$D50<0),"",ROW(A50)-7) ->  | E50: 0
A51: =IF(OR(ISBLANK($B51),$D51<0),"",ROW(A51)-7) ->  | E51: 0
A52: =IF(OR(ISBLANK($B52),$D52<0),"",ROW(A52)-7) ->  | E52: 0
A53: =IF(OR(ISBLANK($B53),$D53<0),"",ROW(A53)-7) ->  | E53: 0
A54: =IF(OR(ISBLANK($B54),$D54<0),"",ROW(A54)-7) ->  | E54: 0
A55: =IF(OR(ISBLANK($B55),$D55<0),"",ROW(A55)-7) ->  | E55: 0
A56: =IF(OR(ISBLANK($B56),$D56<0),"",ROW(A56)-7) ->  | E56: =IF(OR(ISBLANK($F56))," ",F56+G56) -> 
A57: =IF(OR(ISBLANK($B57),$D57<0),"",ROW(A57)-7) ->  | E57: =IF(OR(ISBLANK($F57))," ",F57+G57) -> 
A58: =IF(OR(ISBLANK($B58),$D58<0),"",ROW(A58)-7) ->  | E58: =IF(OR(ISBLANK($F58))," ",F58+G58) -> 
A59: =IF(OR(ISBLANK($B59),$D59<0),"",ROW(A59)-7) ->  | E59: =IF(OR(ISBLANK($F59))," ",F59+G59) -> 
A60: =IF(OR(ISBLANK($B60),$D60<0),"",ROW(A60)-7) ->  | E60: =IF(OR(ISBLANK($F60))," ",F60+G60) -> 
A61: =IF(OR(ISBLANK($B61),$D61<0),"",ROW(A61)-7) -> 
A62: =IF(OR(ISBLANK($B62),$D62<0),"",ROW(A62)-7) -> 
A63: =IF(OR(ISBLANK($B63),$D63<0),"",ROW(A63)-7) -> 
A64: =IF(OR(ISBLANK($B64),$D64<0),"",ROW(A64)-7) -> 
A65: =IF(OR(ISBLANK($B65),$D65<0),"",ROW(A65)-7) -> 
A66: =IF(OR(ISBLANK($B66),$D66<0),"",ROW(A66)-7) -> 
A67: =IF(OR(ISBLANK($B67),$D67<0),"",ROW(A67)-7) -> 
A68: =IF(OR(ISBLANK($B68),$D68<0),"",ROW(A68)-7) -> 
A69: =IF(OR(ISBLANK($B69),$D69<0),"",ROW(A69)-7) -> 
A70: =IF(OR(ISBLANK($B70),$D70<0),"",ROW(A70)-7) -> 
A71: =IF(OR(ISBLANK($B71),$D71<0),"",ROW(A71)-7) -> 
A72: =IF(OR(ISBLANK($B72),$D72<0),"",ROW(A72)-7) -> 
A73: =IF(OR(ISBLANK($B73),$D73<0),"",ROW(A73)-7) -> 

Sheet Jičín
A1: Jičín | C1: dky - dívky | D1: Celkem | E1: Buňky s touto barvou pozadí jsou uzamčeny. Vyplňovat a měnit obsah buňky lze pouze u buněk bez pozadí! | I1: =COUNTIF(F8:F45,">0") -> 34
C2: dci - hoši
D3: =SUM(#REF!) -> 
A5: . | B5: Jméno | C5: Oddíl | D5: Kateg. | E5: Celkem | F5: Plné | G5: Dor. | H5: Chyb
D7: Kategorie | I7: Změny?
A8: =IF(OR(ISBLANK($B8),$D8<0),"",ROW(A8)-7) -> 1. | B8: Doucha Tomáš | C8: SKK Náchod | D8: Dci | E8: =SUM(F8:G8) -> 577 | F8: 385 | G8: 192 | H8: 4
A9: =IF(OR(ISBLANK($B9),$D9<0),"",ROW(A9)-7) -> 2. | B9: Tuček Danny | C9: SKK Náchod | D9: Dci | E9: =SUM(F9:G9) -> 563 | F9: 373 | G9: 190 | H9: 4
A10: =IF(OR(ISBLANK($B10),$D10<0),"",ROW(A10)-7) -> 3. | B10: Doubek Petr | C10: SKK Náchod | D10: Dci | E10: =SUM(F10:G10) -> 562 | F10: 393 | G10: 169 | H10: 7
A11: =IF(OR(ISBLANK($B11),$D11<0),"",ROW(A11)-7) -> 4. | B11: Buben Jiří | C11: KK Kosmonosy | D11: dci | E11: =SUM(F11:G11) -> 561 | F11: 392 | G11: 169 | H11: 7
A12: =IF(OR(ISBLANK($B12),$D12<0),"",ROW(A12)-7) -> 5. | B12: Černý Vít | C12: SKK Hořice | D12: Dci | E12: =SUM(F12:G12) -> 560 | F12: 387 | G12: 173 | H12: 5
A13: =IF(OR(ISBLANK($B13),$D13<0),"",ROW(A13)-7) -> 6. | B13: Vaněček Adam | C13: SK Žižkov Praha | D13: Dci | E13: =SUM(F13:G13) -> 550 | F13: 374 | G13: 176 | H13: 5
A14: =IF(OR(ISBLANK($B14),$D14<0),"",ROW(A14)-7) -> 7. | B14: Čermák Ondřej | C14: KK Kosmonosy | D14: dci | E14: =SUM(F14:G14) -> 547 | F14: 364 | G14: 183 | H14: 8
A15: =IF(OR(ISBLANK($B15),$D15<0),"",ROW(A15)-7) -> 8. | B15: Vondra Matyáš | C15: SKK Jičín | D15: Dci | E15: =SUM(F15:G15) -> 540 | F15: 368 | G15: 172 | H15: 12
A16: =IF(OR(ISBLANK($B16),$D16<0),"",ROW(A16)-7) -> 9. | B16: Pacák Tomáš | C16: TJ Spartak Rokytnice n/J | D16: dci | E16: =SUM(F16:G16) -> 534 | F16: 343 | G16: 191 | H16: 10
A17: =IF(OR(ISBLANK($B17),$D17<0),"",ROW(A17)-7) -> 10. | B17: Šanda Miroslav | C17: SKK Jičín | D17: Dci | E17: =SUM(F17:G17) -> 533 | F17: 370 | G17: 163 | H17: 13
A18: =IF(OR(ISBLANK($B18),$D18<0),"",ROW(A18)-7) -> 11. | B18: Chramosta Vít | C18: SKK Třebechovice p. O. | D18: Dci | E18: =SUM(F18:G18) -> 529 | F18: 346 | G18: 183 | H18: 11
A19: =IF(OR(ISBLANK($B19),$D19<0),"",ROW(A19)-7) -> 12. | B19: Jireček Martin | C19: SKK Náchod | D19: Dci | E19: =SUM(F19:G19) -> 522 | F19: 374 | G19: 148 | H19: 14
A20: =IF(OR(ISBLANK($B20),$D20<0),"",ROW(A20)-7) -> 13. | B20: Exner Filip | C20: TJ Sokol Ústí nad Labem | D20: dci | E20: =SUM(F20:G20) -> 509 | F20: 346 | G20: 163 | H20: 11
A21: =IF(OR(ISBLANK($B21),$D21<0),"",ROW(A21)-7) -> 14. | B21: Brejcha Daniel | C21: TJ Sparta K. Hora | D21: Dci | E21: =SUM(F21:G21) -> 502 | F21: 362 | G21: 140 | H21: 8
A22: =IF(OR(ISBLANK($B22),$D22<0),"",ROW(A22)-7) -> 15. | B22: Bastl David | C22: SKK Třebechovice p. O. | D22: Dci | E22: =SUM(F22:G22) -> 498 | F22: 362 | G22: 136 | H22: 11
A23: =IF(OR(ISBLANK($B23),$D23<0),"",ROW(A23)-7) -> 16. | B23: Procházka Jan | C23: TJ Sok. Tehovec | D23: Dci | E23: =SUM(F23:G23) -> 495 | F23: 340 | G23: 155 | H23: 12
A24: =IF(OR(ISBLANK($B24),$D24<0),"",ROW(A24)-7) -> 17. | B24: Kaválek Matyáš | C24: TJ Č. Kostelec | D24: Dci | E24: =SUM(F24:G24) -> 495 | F24: 364 | G24: 131 | H24: 14
A25: =IF(OR(ISBLANK($B25),$D25<0),"",ROW(A25)-7) -> 18. | B25: Horák Jan | C25: SKK Třebechovice p. O. | D25: dci | E25: =SUM(F25:G25) -> 492 | F25: 349 | G25: 143 | H25: 12
A26: =IF(OR(ISBLANK($B26),$D26<0),"",ROW(A26)-7) -> 19. | B26: Pacák Jakub | C26: TJ Spartak Rokytnice n/J | D26: dci | E26: =SUM(F26:G26) -> 492 | F26: 366 | G26: 126 | H26: 20
A27: =IF(OR(ISBLANK($B27),$D27<0),"",ROW(A27)-7) -> 20. | B27: Macháček Ondřej | C27: TJ Č. Kostelec | D27: Dci | E27: =SUM(F27:G27) -> 454 | F27: 326 | G27: 128 | H27: 16
A28: =IF(OR(ISBLANK($B28),$D28<0),"",ROW(A28)-7) -> 21. | B28: Škrabánek Matěj | C28: KK Jiří Poděbrady | D28: Dci | E28: =SUM(F28:G28) -> 448 | F28: 343 | G28: 105 | H28: 23
A29: =IF(OR(ISBLANK($B29),$D29<0),"",ROW(A29)-7) -> 22. | B29: Plesar Tomáš | C29: KK Kosmonosy | D29: dci | E29: =SUM(F29:G29) -> 431 | F29: 312 | G29: 119 | H29: 19
A30: =IF(OR(ISBLANK($B30),$D30<0),"",ROW(A30)-7) -> 23. | B30: Mareth Martin | C30: TJ Č. Kostelec | D30: dci | E30: =SUM(F30:G30) -> 420 | F30: 307 | G30: 113 | H30: 17
A31: =IF(OR(ISBLANK($B31),$D31<0),"",ROW(A31)-7) -> 24. | B31: Cimprich Jan | C31: SKK Třebechovice p. O. | D31: dci | E31: =SUM(F31:G31) -> 420 | F31: 318 | G31: 102 | H31: 20
A32: =IF(OR(ISBLANK($B32),$D32<0),"",ROW(A32)-7) -> 25. | B32: Bártová Kristýna | C32: SKK Náchod | D32: Dky | E32: =SUM(F32:G32) -> 593 | F32: 389 | G32: 204 | H32: 2
A33: =IF(OR(ISBLANK($B33),$D33<0),"",ROW(A33)-7) -> 26. | B33: Fikarová Adéla | C33: SKK Hořice | D33: Dky | E33: =SUM(F33:G33) -> 556 | F33: 391 | G33: 165 | H33: 14
A34: =IF(OR(ISBLANK($B34),$D34<0),"",ROW(A34)-7) -> 27. | B34: Prouzová Andrea | C34: SKK Náchod | D34: Dky | E34: =SUM(F34:G34) -> 553 | F34: 362 | G34: 191 | H34: 4
A35: =IF(OR(ISBLANK($B35),$D35<0),"",ROW(A35)-7) -> 28. | B35: Venclová Tereza | C35: SKK Vrchlabí | D35: Dky | E35: =SUM(F35:G35) -> 539 | F35: 380 | G35: 159 | H35: 7
A36: =IF(OR(ISBLANK($B36),$D36<0),"",ROW(A36)-7) -> 29. | B36: Burešová Dorota | C36: SKK Jičín | D36: Dky | E36: =SUM(F36:G36) -> 538 | F36: 362 | G36: 176 | H36: 9
A37: =IF(OR(ISBLANK($B37),$D37<0),"",ROW(A37)-7) -> 30. | B37: Soukupová Natálie | C37: SKK Jičín | D37: Dky | E37: =SUM(F37:G37) -> 534 | F37: 359 | G37: 175 | H37: 6 | I37: ano
A38: =IF(OR(ISBLANK($B38),$D38<0),"",ROW(A38)-7) -> 31. | B38: Martínková Lucie | C38: KK Jiří Poděbrady | D38: dky | E38: =SUM(F38:G38) -> 526 | F38: 361 | G38: 165 | H38: 6 | I38: ano
A39: =IF(OR(ISBLANK($B39),$D39<0),"",ROW(A39)-7) -> 32. | B39: Adamů Dana | C39: TJ Č. Kostelec | D39: DKy | E39: =SUM(F39:G39) -> 523 | F39: 366 | G39: 157 | H39: 13 | I39: ano
A40: =IF(OR(ISBLANK($B40),$D40<0),"",ROW(A40)-7) -> 33. | B40: Košnarová Michaela | C40: KK Jiří Poděbrady | D40: dky | E40: =SUM(F40:G40) -> 507 | F40: 346 | G40: 161 | H40: 7
A41: =IF(OR(ISBLANK($B41),$D41<0),"",ROW(A41)-7) -> 34. | B41: Šimková Petra | C41: SC Olympia Radotín | D41: Dky | E41: =SUM(F41:G41) -> 501 | F41: 331 | G41: 170 | H41: 7 | I41: ano
A42: =IF(OR(ISBLANK($B42),$D42<0),"",ROW(A42)-7) ->  | E42: =SUM(F42:G42) -> 0
A43: =IF(OR(ISBLANK($B43),$D43<0),"",ROW(A43)-7) ->  | E43: 0
A44: =IF(OR(ISBLANK($B44),$D44<0),"",ROW(A44)-7) ->  | E44: 0
A45: =IF(OR(ISBLANK($B45),$D45<0),"",ROW(A45)-7) ->  | E45: 0
A46: =IF(OR(ISBLANK($B46),$D46<0),"",ROW(A46)-7) ->  | E46: 0
A47: =IF(OR(ISBLANK($B47),$D47<0),"",ROW(A47)-7) ->  | E47: 0
A48: =IF(OR(ISBLANK($B48),$D48<0),"",ROW(A48)-7) ->  | E48: 0
A49: =IF(OR(ISBLANK($B49),$D49<0),"",ROW(A49)-7) ->  | E49: 0
A50: =IF(OR(ISBLANK($B50),$D50<0),"",ROW(A50)-7) ->  | E50: 0
A51: =IF(OR(ISBLANK($B51),$D51<0),"",ROW(A51)-7) ->  | E51: 0
A52: =IF(OR(ISBLANK($B52),$D52<0),"",ROW(A52)-7) ->  | E52: 0
A53: =IF(OR(ISBLANK($B53),$D53<0),"",ROW(A53)-7) ->  | E53: 0
A54: =IF(OR(ISBLANK($B54),$D54<0),"",ROW(A54)-7) ->  | E54: 0
A55: =IF(OR(ISBLANK($B55),$D55<0),"",ROW(A55)-7) ->  | E55: 0
A56: =IF(OR(ISBLANK($B56),$D56<0),"",ROW(A56)-7) ->  | E56: 0
A57: =IF(OR(ISBLANK($B57),$D57<0),"",ROW(A57)-7) ->  | E57: 0
A58: =IF(OR(ISBLANK($B58),$D58<0),"",ROW(A58)-7) ->  | E58: 0
A59: =IF(OR(ISBLANK($B59),$D59<0),"",ROW(A59)-7) ->  | E59: 0
A60: =IF(OR(ISBLANK($B60),$D60<0),"",ROW(A60)-7) ->  | E60: 0
A61: =IF(OR(ISBLANK($B61),$D61<0),"",ROW(A61)-7) ->  | E61: 0
A62: =IF(OR(ISBLANK($B62),$D62<0),"",ROW(A62)-7) ->  | E62: 0
A63: =IF(OR(ISBLANK($B63),$D63<0),"",ROW(A63)-7) ->  | E63: =IF(OR(ISBLANK($F63))," ",F63+G63) -> 
A64: =IF(OR(ISBLANK($B64),$D64<0),"",ROW(A64)-7) ->  | E64: =IF(OR(ISBLANK($F64))," ",F64+G64) -> 
A65: =IF(OR(ISBLANK($B65),$D65<0),"",ROW(A65)-7) ->  | E65: =IF(OR(ISBLANK($F65))," ",F65+G65) -> 
A66: =IF(OR(ISBLANK($B66),$D66<0),"",ROW(A66)-7) ->  | E66: =IF(OR(ISBLANK($F66))," ",F66+G66) -> 
A67: =IF(OR(ISBLANK($B67),$D67<0),"",ROW(A67)-7) ->  | E67: =IF(OR(ISBLANK($F67))," ",F67+G67) -> 
A68: =IF(OR(ISBLANK($B68),$D68<0),"",ROW(A68)-7) -> 
A69: =IF(OR(ISBLANK($B69),$D69<0),"",ROW(A69)-7) -> 
A70: =IF(OR(ISBLANK($B70),$D70<0),"",ROW(A70)-7) -> 
A71: =IF(OR(ISBLANK($B71),$D71<0),"",ROW(A71)-7) -> 
A72: =IF(OR(ISBLANK($B72),$D72<0),"",ROW(A72)-7) -> 
A73: =IF(OR(ISBLANK($B73),$D73<0),"",ROW(A73)-7) -> 
A74: =IF(OR(ISBLANK($B74),$D74<0),"",ROW(A74)-7) -> 
A75: =IF(OR(ISBLANK($B75),$D75<0),"",ROW(A75)-7) -> 
A76: =IF(OR(ISBLANK($B76),$D76<0),"",ROW(A76)-7) -> 
A77: =IF(OR(ISBLANK($B77),$D77<0),"",ROW(A77)-7) -> 
A78: =IF(OR(ISBLANK($B78),$D78<0),"",ROW(A78)-7) -> 
A79: =IF(OR(ISBLANK($B79),$D79<0),"",ROW(A79)-7) -> 
A80: =IF(OR(ISBLANK($B80),$D80<0),"",ROW(A80)-7) -> 
